[Event "Early-Titled-Tuesday-Blitz-December-26-2023"]
[Site "Chess.com"]
[Date "2023.12.26"]
[Round "4"]
[White "AjedrezInteligente"]
[Black "GoltsevDmitry2000"]
[Result "0-1"]
[WhiteElo "2517"]
[BlackElo "2702"]
[TimeControl "180+1"]
[EndTime "8:37:39 PST"]
[Termination "GoltsevDmitry2000 won by resignation"]

1. e4 {[%clk 0:03:00.9]} 1... e6 {[%clk 0:02:59.1]} 2. d4 {[%clk 0:03:00.9]}
2... d5 {[%clk 0:02:49.8]} 3. Bd3 {[%clk 0:03:00.5]} 3... c5 {[%clk 0:02:50.4]}
4. exd5 {[%clk 0:02:52.5]} 4... exd5 {[%clk 0:02:51.3]} 5. dxc5 {[%clk
0:02:49.9]} 5... Bxc5 {[%clk 0:02:51.2]} 6. Nf3 {[%clk 0:02:50.7]} 6... Nf6
{[%clk 0:02:51.5]} 7. O-O {[%clk 0:02:50.9]} 7... O-O {[%clk 0:02:52.2]} 8. Nc3
{[%clk 0:02:50.1]} 8... Nc6 {[%clk 0:02:52.5]} 9. Bg5 {[%clk 0:02:49.3]} 9...
Bg4 {[%clk 0:02:52.8]} 10. h3 {[%clk 0:02:46.1]} 10... Bh5 {[%clk 0:02:52.6]}
11. Bxf6 {[%clk 0:02:17.5]} 11... Qxf6 {[%clk 0:02:53.5]} 12. Nxd5 {[%clk
0:02:17.5]} 12... Qxb2 {[%clk 0:02:52.6]} 13. Nf4 {[%clk 0:02:13.2]} 13... Bxf3
{[%clk 0:02:50]} 14. Qxf3 {[%clk 0:02:11.8]} 14... Ne5 {[%clk 0:02:50]} 15. Qe4
{[%clk 0:02:08.7]} 15... Ng6 {[%clk 0:02:46.5]} 16. Nxg6 {[%clk 0:01:59.7]}
16... hxg6 {[%clk 0:02:47.4]} 17. Rab1 {[%clk 0:01:56.4]} 17... Qxa2 {[%clk
0:02:46.6]} 18. Rxb7 {[%clk 0:01:52]} 18... Rae8 {[%clk 0:02:36.3]} 19. Qc6
{[%clk 0:01:21.1]} 19... Re5 {[%clk 0:02:24.9]} 20. Rc7 {[%clk 0:01:10.6]} 20...
a5 {[%clk 0:02:21.1]} 21. Qa6 {[%clk 0:01:02.5]} 21... a4 {[%clk 0:02:11.9]} 22.
Qc4 {[%clk 0:00:18.9]} 22... Qxc4 {[%clk 0:02:09.2]} 23. Bxc4 {[%clk 0:00:19.8]}
23... a3 {[%clk 0:02:10.1]} 24. g3 {[%clk 0:00:15.8]} 24... Bd4 {[%clk
0:02:06.7]} 25. Rb7 {[%clk 0:00:09.9]} 25... Rf5 {[%clk 0:02:02.2]} 26. Kg2
{[%clk 0:00:09.2]} 26... Re8 {[%clk 0:02:01.5]} 27. f4 {[%clk 0:00:07.2]} 27...
Re3 {[%clk 0:01:59.6]} 28. Bd3 {[%clk 0:00:06.1]} 28... Rxd3 {[%clk 0:01:57.2]}
29. cxd3 {[%clk 0:00:06.2]} 29... Ra5 {[%clk 0:01:56.6]} 30. Rb8+ {[%clk
0:00:02.4]} 30... Kh7 {[%clk 0:01:56]} 31. Rbb1 {[%clk 0:00:03.3]} 31... a2
{[%clk 0:01:56.1]} 32. Ra1 {[%clk 0:00:04.2]} 32... Ra3 {[%clk 0:01:53.1]} 33.
Kf3 {[%clk 0:00:03.3]} 33... Bxa1 {[%clk 0:01:52.8]} 34. Rxa1 {[%clk 0:00:03]}
34... Rxd3+ {[%clk 0:01:53.7]} 35. Ke4 {[%clk 0:00:02.7]} 35... Ra3 {[%clk
0:01:52.8]} 36. g4 {[%clk 0:00:02.6]} 36... f6 {[%clk 0:01:46.5]} 37. h4 {[%clk
0:00:03.2]} 37... Kh6 {[%clk 0:01:46.4]} 38. Kd4 {[%clk 0:00:02.6]} 38... Ra4+
{[%clk 0:01:45.5]} 39. Ke3 {[%clk 0:00:02.9]} 39... f5 {[%clk 0:01:45]} 40. gxf5
{[%clk 0:00:02.7]} 40... gxf5 {[%clk 0:01:45.9]} 41. Kf3 {[%clk 0:00:02.7]}
41... Kh5 {[%clk 0:01:46.2]} 42. Ke3 {[%clk 0:00:01.3]} 42... Ra3+ {[%clk
0:01:46.6]} 43. Kd4 {[%clk 0:00:01.2]} 43... Kxh4 {[%clk 0:01:47.2]} 44. Ke5
{[%clk 0:00:02.1]} 44... Kg4 {[%clk 0:01:47.1]} 45. Rg1+ {[%clk 0:00:02.8]}
45... Kf3 {[%clk 0:01:47.4]} 46. Rf1+ {[%clk 0:00:03.5]} 46... Ke2 {[%clk
0:01:47.6]} 47. Ra1 {[%clk 0:00:04.1]} 47... g6 {[%clk 0:01:48.2]} 48. Kf6
{[%clk 0:00:04.6]} 48... Kd2 {[%clk 0:01:47.9]} 49. Kxg6 {[%clk 0:00:04.8]}
49... Ra5 {[%clk 0:01:48.6]} 50. Kg5 {[%clk 0:00:04.9]} 50... Kc3 {[%clk
0:01:48.1]} 51. Rxa2 {[%clk 0:00:04.2]} 51... Rxa2 {[%clk 0:01:49]} 52. Kxf5
{[%clk 0:00:04.7]} 52... Kd4 {[%clk 0:01:49.7]} 53. Kg6 {[%clk 0:00:04.9]} 53...
Rf2 {[%clk 0:01:50.2]} 54. f5 {[%clk 0:00:05.1]} 54... Ke5 {[%clk 0:01:51.1]}
0-1

[Event "Early-Titled-Tuesday-Blitz-December-26-2023"]
[Site "Chess.com"]
[Date "2023.12.26"]
[Round "4"]
[White "JimDiGrease"]
[Black "Eternauta2400"]
[Result "1-0"]
[WhiteElo "2987"]
[BlackElo "2808"]
[TimeControl "180+1"]
[EndTime "8:37:41 PST"]
[Termination "JimDiGrease won by resignation"]

1. d4 {[%clk 0:03:00.9]} 1... Nf6 {[%clk 0:03:00.2]} 2. c4 {[%clk 0:03:01.4]}
2... e6 {[%clk 0:03:00.6]} 3. Bf4 {[%clk 0:03:02]} 3... d5 {[%clk 0:02:58.6]} 4.
Nc3 {[%clk 0:03:02.2]} 4... Bb4 {[%clk 0:02:56.7]} 5. Qa4+ {[%clk 0:03:02]} 5...
Nc6 {[%clk 0:02:56.6]} 6. e3 {[%clk 0:03:02.7]} 6... O-O {[%clk 0:02:55.8]} 7.
Nf3 {[%clk 0:03:03.4]} 7... Ne4 {[%clk 0:02:52.6]} 8. Qc2 {[%clk 0:03:02.8]}
8... Nf6 {[%clk 0:02:42.2]} 9. Bd3 {[%clk 0:02:56.5]} 9... dxc4 {[%clk 0:02:42]}
10. Bxc4 {[%clk 0:02:57.4]} 10... a6 {[%clk 0:02:39.9]} 11. O-O {[%clk
0:02:45.8]} 11... b5 {[%clk 0:02:39.5]} 12. Be2 {[%clk 0:02:18.1]} 12... Bb7
{[%clk 0:02:38.1]} 13. a4 {[%clk 0:02:11.5]} 13... bxa4 {[%clk 0:02:33.5]} 14.
Nxa4 {[%clk 0:02:03.9]} 14... Qe7 {[%clk 0:01:55.4]} 15. Rfc1 {[%clk 0:02:01.5]}
15... Bd6 {[%clk 0:01:33.2]} 16. Bg3 {[%clk 0:01:52.7]} 16... Nb4 {[%clk
0:01:30.9]} 17. Qb3 {[%clk 0:01:36.2]} 17... Bd5 {[%clk 0:01:28.3]} 18. Qa3
{[%clk 0:01:33.9]} 18... a5 {[%clk 0:01:19.2]} 19. Nc5 {[%clk 0:01:27.1]} 19...
Ne4 {[%clk 0:01:09.3]} 20. Nxe4 {[%clk 0:01:08.1]} 20... Bxe4 {[%clk 0:01:08.9]}
21. Qa4 {[%clk 0:01:08.3]} 21... Rfb8 {[%clk 0:01:00.4]} 22. Ne5 {[%clk
0:01:03.9]} 22... h6 {[%clk 0:00:58.1]} 23. h3 {[%clk 0:01:00.1]} 23... f6
{[%clk 0:00:50]} 24. Nd7 {[%clk 0:00:38]} 24... Bc6 {[%clk 0:00:31.6]} 25. Rxc6
{[%clk 0:00:33.1]} 25... Qxd7 {[%clk 0:00:31.7]} 26. Rcc1 {[%clk 0:00:13.6]}
26... Bxg3 {[%clk 0:00:31.5]} 27. Qxd7 {[%clk 0:00:13]} 1-0

[Event "Early-Titled-Tuesday-Blitz-December-26-2023"]
[Site "Chess.com"]
[Date "2023.12.26"]
[Round "4"]
[White "Manukyan_Artak"]
[Black "Lion_DL"]
[Result "0-1"]
[WhiteElo "2600"]
[BlackElo "2370"]
[TimeControl "180+1"]
[EndTime "8:37:41 PST"]
[Termination "Lion_DL won by resignation"]

1. e4 {[%clk 0:03:00]} 1... c5 {[%clk 0:03:00.1]} 2. Nf3 {[%clk 0:02:58.8]} 2...
e6 {[%clk 0:03:00.7]} 3. c3 {[%clk 0:02:59]} 3... Nf6 {[%clk 0:02:59.7]} 4. e5
{[%clk 0:02:59.5]} 4... Nd5 {[%clk 0:03:00.4]} 5. d4 {[%clk 0:02:59.4]} 5...
cxd4 {[%clk 0:03:01.3]} 6. cxd4 {[%clk 0:03:00.1]} 6... d6 {[%clk 0:03:02]} 7.
Nc3 {[%clk 0:03:00.3]} 7... Nxc3 {[%clk 0:03:02.2]} 8. bxc3 {[%clk 0:03:01.2]}
8... Qc7 {[%clk 0:03:02.7]} 9. Bd2 {[%clk 0:03:01.1]} 9... Nd7 {[%clk
0:03:03.3]} 10. Bb5 {[%clk 0:03:01]} 10... a6 {[%clk 0:03:01.8]} 11. Bxd7+
{[%clk 0:02:59.6]} 11... Bxd7 {[%clk 0:03:02.7]} 12. O-O {[%clk 0:02:59.2]}
12... Be7 {[%clk 0:03:02.7]} 13. Re1 {[%clk 0:02:59.1]} 13... O-O {[%clk
0:03:02.6]} 14. exd6 {[%clk 0:02:55.6]} 14... Bxd6 {[%clk 0:03:03.5]} 15. Ne5
{[%clk 0:02:56]} 15... Rac8 {[%clk 0:02:59.9]} 16. Qh5 {[%clk 0:02:55.4]} 16...
f6 {[%clk 0:02:47.7]} 17. Nxd7 {[%clk 0:02:47]} 17... Qxd7 {[%clk 0:02:48.6]}
18. a4 {[%clk 0:02:46.4]} 18... e5 {[%clk 0:02:40]} 19. Qe2 {[%clk 0:02:17.6]}
19... Rfe8 {[%clk 0:02:31.4]} 20. Qd3 {[%clk 0:02:17]} 20... exd4 {[%clk
0:02:21.3]} 21. cxd4 {[%clk 0:02:16.8]} 21... Be5 {[%clk 0:02:18.7]} 22. Be3
{[%clk 0:02:14.3]} 22... Red8 {[%clk 0:02:14.8]} 23. Red1 {[%clk 0:02:13.6]}
23... Qd5 {[%clk 0:02:06.9]} 24. Rab1 {[%clk 0:02:02.8]} 24... Rc4 {[%clk
0:02:00.1]} 25. Rxb7 {[%clk 0:01:37.9]} 25... Bxd4 {[%clk 0:01:52.7]} 26. Qb1
{[%clk 0:01:34.2]} 26... Qc5 {[%clk 0:01:32.9]} 27. Rb8 {[%clk 0:01:26.4]} 27...
Rxb8 {[%clk 0:01:10.3]} 28. Qxb8+ {[%clk 0:01:27.3]} 28... Kf7 {[%clk
0:01:10.9]} 29. Qb7+ {[%clk 0:01:21.5]} 29... Kf8 {[%clk 0:00:59.9]} 30. Qb8+
{[%clk 0:00:44]} 30... Kf7 {[%clk 0:00:59.2]} 31. Qb7+ {[%clk 0:00:30.6]} 31...
Kf8 {[%clk 0:00:58.9]} 32. Bxd4 {[%clk 0:00:23.4]} 32... Rxd4 {[%clk 0:00:58.8]}
33. Re1 {[%clk 0:00:20.5]} 33... Rd8 {[%clk 0:00:56.1]} 34. Qxa6 {[%clk
0:00:19.9]} 34... Qb4 {[%clk 0:00:53.3]} 35. Qb5 {[%clk 0:00:18.6]} 35... Qxe1+
{[%clk 0:00:52.9]} 0-1

[Event "Early-Titled-Tuesday-Blitz-December-26-2023"]
[Site "Chess.com"]
[Date "2023.12.26"]
[Round "4"]
[White "tantaan"]
[Black "ChessBliss09"]
[Result "1-0"]
[WhiteElo "2472"]
[BlackElo "2093"]
[TimeControl "180+1"]
[EndTime "8:37:49 PST"]
[Termination "tantaan won on time"]

1. e4 {[%clk 0:03:00.9]} 1... c6 {[%clk 0:02:57.3]} 2. d4 {[%clk 0:03:00.6]}
2... d5 {[%clk 0:02:57.9]} 3. f3 {[%clk 0:03:01.2]} 3... dxe4 {[%clk 0:02:57.1]}
4. fxe4 {[%clk 0:02:57.5]} 4... e5 {[%clk 0:02:57.6]} 5. Nf3 {[%clk 0:02:57.7]}
5... Bg4 {[%clk 0:02:55.3]} 6. Bc4 {[%clk 0:02:57.8]} 6... Nf6 {[%clk
0:02:49.2]} 7. O-O {[%clk 0:02:57.9]} 7... Be7 {[%clk 0:02:34.5]} 8. Bxf7+
{[%clk 0:02:56.6]} 8... Kxf7 {[%clk 0:02:25.2]} 9. Nxe5+ {[%clk 0:02:56.8]} 9...
Ke8 {[%clk 0:02:23.1]} 10. Nxg4 {[%clk 0:02:56.6]} 10... Nxg4 {[%clk 0:02:15.6]}
11. Qxg4 {[%clk 0:02:56.3]} 11... Qxd4+ {[%clk 0:02:16.2]} 12. Kh1 {[%clk
0:02:56.4]} 12... Nd7 {[%clk 0:02:13.7]} 13. Nc3 {[%clk 0:02:52.7]} 13... Nf6
{[%clk 0:02:11.2]} 14. Qxg7 {[%clk 0:02:30.1]} 14... Rg8 {[%clk 0:02:09.5]} 15.
Qh6 {[%clk 0:02:29.6]} 15... Nxe4 {[%clk 0:01:49.1]} 16. Qh5+ {[%clk 0:02:13.4]}
16... Kd8 {[%clk 0:01:40.4]} 17. Nxe4 {[%clk 0:01:32.3]} 17... Qxe4 {[%clk
0:01:37.1]} 18. Qh3 {[%clk 0:01:31.7]} 18... Kc7 {[%clk 0:00:33.4]} 19. Bf4+
{[%clk 0:01:30.4]} 19... Kb6 {[%clk 0:00:29.2]} 20. Rae1 {[%clk 0:01:04.3]}
20... Qc4 {[%clk 0:00:11.3]} 21. Rf3 {[%clk 0:01:00.1]} 21... Bb4 {[%clk
0:00:09.9]} 22. c3 {[%clk 0:00:49.7]} 22... Bc5 {[%clk 0:00:08]} 23. b4 {[%clk
0:00:44.3]} 23... Be7 {[%clk 0:00:03.7]} 24. Rxe7 {[%clk 0:00:34.7]} 24... Rad8
{[%clk 0:00:03.7]} 25. Re1 {[%clk 0:00:34]} 1-0

[Event "Early-Titled-Tuesday-Blitz-December-26-2023"]
[Site "Chess.com"]
[Date "2023.12.26"]
[Round "4"]
[White "Kirill_Klukin"]
[Black "wonderfultime"]
[Result "0-1"]
[WhiteElo "2836"]
[BlackElo "3016"]
[TimeControl "180+1"]
[EndTime "8:37:51 PST"]
[Termination "wonderfultime won on time"]

1. d4 {[%clk 0:03:00.9]} 1... d5 {[%clk 0:03:00.1]} 2. c4 {[%clk 0:03:00.8]}
2... c6 {[%clk 0:03:00.3]} 3. Nc3 {[%clk 0:03:00.9]} 3... Nf6 {[%clk 0:03:00.8]}
4. Nf3 {[%clk 0:03:01.2]} 4... a6 {[%clk 0:03:01.3]} 5. e3 {[%clk 0:02:59]} 5...
Bf5 {[%clk 0:03:01.5]} 6. Bd3 {[%clk 0:02:58.8]} 6... Bg6 {[%clk 0:03:01.5]} 7.
O-O {[%clk 0:02:56]} 7... e6 {[%clk 0:03:02]} 8. b3 {[%clk 0:02:48.2]} 8... Nbd7
{[%clk 0:03:01]} 9. Bb2 {[%clk 0:02:45.4]} 9... Bd6 {[%clk 0:03:01.2]} 10. Qc2
{[%clk 0:02:40.4]} 10... O-O {[%clk 0:02:59.6]} 11. e4 {[%clk 0:02:31.7]} 11...
dxe4 {[%clk 0:02:47.9]} 12. Nxe4 {[%clk 0:02:31.9]} 12... Nxe4 {[%clk
0:02:48.4]} 13. Bxe4 {[%clk 0:02:32.8]} 13... a5 {[%clk 0:02:49.2]} 14. Rad1
{[%clk 0:02:15.9]} 14... Re8 {[%clk 0:02:48.1]} 15. Bxg6 {[%clk 0:02:08.7]}
15... hxg6 {[%clk 0:02:48.2]} 16. d5 {[%clk 0:02:05.4]} 16... cxd5 {[%clk
0:02:31.8]} 17. cxd5 {[%clk 0:02:05.5]} 17... Rc8 {[%clk 0:02:32.5]} 18. Qd3
{[%clk 0:01:45.5]} 18... e5 {[%clk 0:02:18.2]} 19. Nd2 {[%clk 0:01:44.8]} 19...
Nc5 {[%clk 0:01:58.1]} 20. Qb5 {[%clk 0:01:40.7]} 20... e4 {[%clk 0:01:56]} 21.
Nc4 {[%clk 0:01:35.5]} 21... Nd3 {[%clk 0:01:55]} 22. Bd4 {[%clk 0:01:26]} 22...
Bc5 {[%clk 0:01:40.3]} 23. Be3 {[%clk 0:00:35.3]} 23... Qxd5 {[%clk 0:01:29.5]}
24. Nxa5 {[%clk 0:00:26]} 24... Qe5 {[%clk 0:00:58.4]} 25. Nc4 {[%clk
0:00:21.5]} 25... Qe7 {[%clk 0:00:57.1]} 26. Nb6 {[%clk 0:00:17.5]} 26... Rc6
{[%clk 0:00:53.3]} 27. Nd5 {[%clk 0:00:12.7]} 27... Qe5 {[%clk 0:00:53.4]} 28.
Rxd3 {[%clk 0:00:03.4]} 28... exd3 {[%clk 0:00:52.2]} 29. Qxd3 {[%clk
0:00:04.3]} 29... Rd8 {[%clk 0:00:45.5]} 30. Rd1 {[%clk 0:00:04.5]} 30... Rcd6
{[%clk 0:00:45.9]} 0-1

[Event "Early-Titled-Tuesday-Blitz-December-26-2023"]
[Site "Chess.com"]
[Date "2023.12.26"]
[Round "4"]
[White "wild3000"]
[Black "SaqoChess_Twitch"]
[Result "0-1"]
[WhiteElo "2419"]
[BlackElo "2648"]
[TimeControl "180+1"]
[EndTime "8:37:53 PST"]
[Termination "SaqoChess_Twitch won by resignation"]

1. d4 {[%clk 0:02:00.4]} 1... d5 {[%clk 0:02:59.6]} 2. e3 {[%clk 0:02:00.5]}
2... e6 {[%clk 0:02:59.8]} 3. Nf3 {[%clk 0:02:01.4]} 3... Nf6 {[%clk 0:02:59.8]}
4. Be2 {[%clk 0:02:02.3]} 4... c5 {[%clk 0:03:00.3]} 5. O-O {[%clk 0:02:03.2]}
5... Nc6 {[%clk 0:03:00.9]} 6. a3 {[%clk 0:02:03.4]} 6... Bd6 {[%clk 0:03:00.5]}
7. dxc5 {[%clk 0:02:03.6]} 7... Bxc5 {[%clk 0:03:00.5]} 8. b4 {[%clk 0:02:04.5]}
8... Bd6 {[%clk 0:03:00.6]} 9. Bb2 {[%clk 0:02:04.8]} 9... O-O {[%clk
0:03:01.1]} 10. c4 {[%clk 0:02:04.9]} 10... dxc4 {[%clk 0:03:00.4]} 11. Bxc4
{[%clk 0:02:03.9]} 11... Qc7 {[%clk 0:03:01]} 12. Bb3 {[%clk 0:02:00.4]} 12...
Rd8 {[%clk 0:03:01.5]} 13. Qe2 {[%clk 0:02:00.4]} 13... Ne5 {[%clk 0:03:01.1]}
14. Nbd2 {[%clk 0:01:56.4]} 14... Nxf3+ {[%clk 0:02:52.7]} 15. Nxf3 {[%clk
0:01:56.2]} 15... Qe7 {[%clk 0:02:51.7]} 16. Rfd1 {[%clk 0:01:50.7]} 16... Bd7
{[%clk 0:02:51.6]} 17. h3 {[%clk 0:01:49.3]} 17... Bc6 {[%clk 0:02:51.6]} 18.
Ne5 {[%clk 0:01:49.2]} 18... Bd5 {[%clk 0:02:48]} 19. Bxd5 {[%clk 0:01:45.6]}
19... Nxd5 {[%clk 0:02:48.9]} 20. Nc4 {[%clk 0:01:40.7]} 20... Bc7 {[%clk
0:02:46.2]} 21. e4 {[%clk 0:01:36]} 21... Nf4 {[%clk 0:02:43.6]} 22. Qg4 {[%clk
0:01:33.3]} 22... Ng6 {[%clk 0:02:43.8]} 23. g3 {[%clk 0:01:23.4]} 23... Rxd1+
{[%clk 0:02:43.2]} 24. Rxd1 {[%clk 0:01:22.9]} 24... Rd8 {[%clk 0:02:44.1]} 25.
h4 {[%clk 0:01:19.1]} 25... b5 {[%clk 0:02:43.8]} 26. Ne3 {[%clk 0:01:10.2]}
26... Rxd1+ {[%clk 0:02:42.9]} 27. Qxd1 {[%clk 0:01:09.9]} 27... Be5 {[%clk
0:02:41.2]} 28. Qa1 {[%clk 0:00:56.5]} 28... Bxb2 {[%clk 0:02:40.9]} 29. Qxb2
{[%clk 0:00:56.5]} 29... Qd6 {[%clk 0:02:40.6]} 30. Qc3 {[%clk 0:00:51.9]} 30...
h6 {[%clk 0:02:36.9]} 31. Qc8+ {[%clk 0:00:46]} 31... Kh7 {[%clk 0:02:32.5]} 32.
Qb7 {[%clk 0:00:42.8]} 32... Ne5 {[%clk 0:01:51.7]} 33. Qxa7 {[%clk 0:00:42.2]}
33... Qd2 {[%clk 0:01:49]} 34. Ng2 {[%clk 0:00:27.9]} 34... Nf3+ {[%clk
0:01:45.4]} 35. Kh1 {[%clk 0:00:25.2]} 35... Qd1+ {[%clk 0:01:45]} 36. Ne1
{[%clk 0:00:25.5]} 36... Nxe1 {[%clk 0:01:45.1]} 37. Qxf7 {[%clk 0:00:22.2]}
37... Qf3+ {[%clk 0:01:44.8]} 38. Qxf3 {[%clk 0:00:21.6]} 38... Nxf3 {[%clk
0:01:45.7]} 39. Kg2 {[%clk 0:00:22.4]} 39... Nd2 {[%clk 0:01:46]} 40. f4 {[%clk
0:00:21.4]} 40... Nxe4 {[%clk 0:01:44.1]} 41. Kf3 {[%clk 0:00:21.7]} 41... Nd2+
{[%clk 0:01:43.9]} 42. Ke3 {[%clk 0:00:22.6]} 42... Nc4+ {[%clk 0:01:44.8]} 43.
Kd4 {[%clk 0:00:22.5]} 43... Nxa3 {[%clk 0:01:45.7]} 44. Ke5 {[%clk 0:00:22.6]}
44... Nc2 {[%clk 0:01:45.2]} 45. Kd6 {[%clk 0:00:22.1]} 45... Nxb4 {[%clk
0:01:46.1]} 46. Kc5 {[%clk 0:00:23]} 46... Nd5 {[%clk 0:01:39.2]} 47. Kxb5
{[%clk 0:00:23.9]} 47... Nc3+ {[%clk 0:01:39.9]} 48. Kc4 {[%clk 0:00:23.9]}
48... Ne2 {[%clk 0:01:40.8]} 49. Kc5 {[%clk 0:00:22.2]} 49... Nxg3 {[%clk
0:01:41.5]} 50. Kd6 {[%clk 0:00:23.1]} 50... Nh5 {[%clk 0:01:40.9]} 51. Ke5
{[%clk 0:00:22.5]} 51... Kg6 {[%clk 0:01:40.8]} 52. Ke4 {[%clk 0:00:20.8]} 52...
Kf6 {[%clk 0:01:40.7]} 53. Ke3 {[%clk 0:00:19.9]} 53... Kf5 {[%clk 0:01:41.6]}
54. Kf3 {[%clk 0:00:20.2]} 54... Nxf4 {[%clk 0:01:42.5]} 55. Kg3 {[%clk
0:00:21]} 55... g5 {[%clk 0:01:43.2]} 56. hxg5 {[%clk 0:00:21]} 56... hxg5
{[%clk 0:01:44.1]} 57. Kf3 {[%clk 0:00:20.8]} 57... e5 {[%clk 0:01:45]} 58. Kg3
{[%clk 0:00:21.6]} 58... e4 {[%clk 0:01:45.9]} 59. Kf2 {[%clk 0:00:21.8]} 59...
Nh5 {[%clk 0:01:45.8]} 60. Ke3 {[%clk 0:00:21.8]} 60... Ke5 {[%clk 0:01:46.7]}
61. Kf2 {[%clk 0:00:22.1]} 61... Kf4 {[%clk 0:01:47.6]} 62. Ke2 {[%clk
0:00:22.4]} 62... g4 {[%clk 0:01:48.5]} 63. Kf2 {[%clk 0:00:22.9]} 63... g3+
{[%clk 0:01:49.4]} 64. Kg2 {[%clk 0:00:23.4]} 64... Kg4 {[%clk 0:01:50.3]} 65.
Kg1 {[%clk 0:00:23.8]} 65... e3 {[%clk 0:01:51.2]} 66. Kf1 {[%clk 0:00:24]}
66... Kf3 {[%clk 0:01:52.1]} 67. Kg1 {[%clk 0:00:23.1]} 67... Nf4 {[%clk
0:01:53]} 68. Kf1 {[%clk 0:00:23.3]} 68... Nd3 {[%clk 0:01:52.7]} 69. Kg1 {[%clk
0:00:23.2]} 69... e2 {[%clk 0:01:53.4]} 0-1

[Event "Early-Titled-Tuesday-Blitz-December-26-2023"]
[Site "Chess.com"]
[Date "2023.12.26"]
[Round "4"]
[White "stratacticos"]
[Black "WindWhistler11"]
[Result "0-1"]
[WhiteElo "1853"]
[BlackElo "2446"]
[TimeControl "180+1"]
[EndTime "8:37:54 PST"]
[Termination "WindWhistler11 won by resignation"]

1. e4 {[%clk 0:02:59.5]} 1... e6 {[%clk 0:02:57.4]} 2. d4 {[%clk 0:02:57.8]}
2... d5 {[%clk 0:02:57.8]} 3. e5 {[%clk 0:02:57.7]} 3... c5 {[%clk 0:02:56.5]}
4. c3 {[%clk 0:02:57.5]} 4... Nc6 {[%clk 0:02:56.8]} 5. Nf3 {[%clk 0:02:57.8]}
5... Bd7 {[%clk 0:02:55.8]} 6. dxc5 {[%clk 0:02:57.2]} 6... Bxc5 {[%clk
0:02:52.8]} 7. b4 {[%clk 0:02:57]} 7... Bb6 {[%clk 0:02:53]} 8. b5 {[%clk
0:02:56.9]} 8... Na5 {[%clk 0:02:52.3]} 9. Bd3 {[%clk 0:02:57]} 9... Rc8 {[%clk
0:02:52.2]} 10. O-O {[%clk 0:02:56.4]} 10... Ne7 {[%clk 0:02:52.5]} 11. Qe2
{[%clk 0:02:52.5]} 11... Nc4 {[%clk 0:02:42.6]} 12. a4 {[%clk 0:02:49.2]} 12...
Ba5 {[%clk 0:02:40.4]} 13. Ra2 {[%clk 0:02:40.5]} 13... Ng6 {[%clk 0:02:36.7]}
14. g3 {[%clk 0:02:20.7]} 14... f6 {[%clk 0:02:16.7]} 15. exf6 {[%clk
0:02:17.9]} 15... Qxf6 {[%clk 0:02:13.6]} 16. Bg5 {[%clk 0:02:11.9]} 16... Qf7
{[%clk 0:02:08.4]} 17. h4 {[%clk 0:02:05.4]} 17... O-O {[%clk 0:01:51.9]} 18.
Kg2 {[%clk 0:02:04.7]} 18... h6 {[%clk 0:01:30.1]} 19. h5 {[%clk 0:01:51.1]}
19... Qxf3+ {[%clk 0:01:11.3]} 20. Qxf3 {[%clk 0:01:50]} 20... Rxf3 {[%clk
0:01:11.6]} 21. Bxg6 {[%clk 0:01:40.7]} 21... Rff8 {[%clk 0:01:00.4]} 22. Be7
{[%clk 0:01:32.2]} 22... e5 {[%clk 0:00:47.2]} 23. Bxf8 {[%clk 0:01:31.4]} 23...
Rxf8 {[%clk 0:00:48.1]} 24. Bd3 {[%clk 0:01:21.5]} 24... Nd6 {[%clk 0:00:45.7]}
25. Na3 {[%clk 0:01:15]} 25... Bxc3 {[%clk 0:00:41.5]} 26. Rc2 {[%clk
0:01:08.6]} 26... Bb4 {[%clk 0:00:39.8]} 27. Rc7 {[%clk 0:00:50.7]} 27... Bg4
{[%clk 0:00:39.4]} 28. Nc2 {[%clk 0:00:47.3]} 28... Ba5 {[%clk 0:00:39.3]} 29.
Re7 {[%clk 0:00:36.6]} 29... e4 {[%clk 0:00:34.3]} 30. Ne3 {[%clk 0:00:34.7]}
30... Bf3+ {[%clk 0:00:34.3]} 31. Kh2 {[%clk 0:00:33.3]} 31... exd3 {[%clk
0:00:35.2]} 32. Nxd5 {[%clk 0:00:32.8]} 32... Bxd5 {[%clk 0:00:33.9]} 33. Rd7
{[%clk 0:00:30]} 33... Rf6 {[%clk 0:00:34]} 34. Rd1 {[%clk 0:00:28.4]} 34... d2
{[%clk 0:00:33.6]} 0-1

[Event "Early-Titled-Tuesday-Blitz-December-26-2023"]
[Site "Chess.com"]
[Date "2023.12.26"]
[Round "4"]
[White "RamyresCoelho"]
[Black "a-z30"]
[Result "0-1"]
[WhiteElo "2292"]
[BlackElo "2492"]
[TimeControl "180+1"]
[EndTime "8:37:55 PST"]
[Termination "a-z30 won by checkmate"]

1. e4 {[%clk 0:03:00]} 1... d6 {[%clk 0:03:00.2]} 2. d4 {[%clk 0:02:56.8]} 2...
Nf6 {[%clk 0:02:59.8]} 3. Nc3 {[%clk 0:02:55.9]} 3... g6 {[%clk 0:03:00.1]} 4.
f3 {[%clk 0:02:55.2]} 4... Bg7 {[%clk 0:03:00.3]} 5. Be3 {[%clk 0:02:55.7]} 5...
O-O {[%clk 0:03:00.7]} 6. Qd2 {[%clk 0:02:55.4]} 6... e5 {[%clk 0:03:01.4]} 7.
O-O-O {[%clk 0:02:55.2]} 7... Nc6 {[%clk 0:03:01.1]} 8. d5 {[%clk 0:02:53.8]}
8... Nd4 {[%clk 0:03:00.6]} 9. Nge2 {[%clk 0:02:52.5]} 9... Nxe2+ {[%clk
0:02:59.8]} 10. Bxe2 {[%clk 0:02:49.3]} 10... Nh5 {[%clk 0:02:59.6]} 11. g4
{[%clk 0:02:47.6]} 11... Nf4 {[%clk 0:02:58.8]} 12. Bxf4 {[%clk 0:02:47.3]}
12... exf4 {[%clk 0:02:58.5]} 13. Qxf4 {[%clk 0:02:47.7]} 13... b5 {[%clk
0:02:57.9]} 14. Bxb5 {[%clk 0:02:29.6]} 14... Rb8 {[%clk 0:02:56.8]} 15. Bc4
{[%clk 0:02:25.6]} 15... Bd7 {[%clk 0:02:48.1]} 16. Bb3 {[%clk 0:02:24.4]} 16...
a5 {[%clk 0:02:46.8]} 17. a4 {[%clk 0:02:20.9]} 17... Rb4 {[%clk 0:02:43.1]} 18.
h4 {[%clk 0:02:19.5]} 18... Qb8 {[%clk 0:02:35.2]} 19. h5 {[%clk 0:02:13.7]}
19... Rxb3 {[%clk 0:02:33.2]} 20. cxb3 {[%clk 0:02:12.7]} 20... Qxb3 {[%clk
0:02:34.1]} 21. Rd3 {[%clk 0:02:06.3]} 21... Bxa4 {[%clk 0:02:27.2]} 22. Nxa4
{[%clk 0:00:50.9]} 22... Qxd3 {[%clk 0:02:15.9]} 23. Qd2 {[%clk 0:00:16.3]}
23... Qxf3 {[%clk 0:02:08.9]} 24. Rh2 {[%clk 0:00:16.4]} 24... Qxe4 {[%clk
0:02:06.1]} 25. Nc3 {[%clk 0:00:16]} 25... Qxg4 {[%clk 0:02:04.5]} 26. hxg6
{[%clk 0:00:14.5]} 26... hxg6 {[%clk 0:02:03.4]} 27. Rg2 {[%clk 0:00:11.1]}
27... Qc4 {[%clk 0:02:00.4]} 28. Re2 {[%clk 0:00:08.4]} 28... Rb8 {[%clk
0:01:47.9]} 29. Qe1 {[%clk 0:00:07.1]} 29... Bxc3 {[%clk 0:01:27]} 30. Re8+
{[%clk 0:00:06.6]} 30... Rxe8 {[%clk 0:01:26.1]} 31. Qxe8+ {[%clk 0:00:07.5]}
31... Kg7 {[%clk 0:01:26]} 32. bxc3 {[%clk 0:00:08.4]} 32... Qxc3+ {[%clk
0:01:25.6]} 33. Kb1 {[%clk 0:00:08.6]} 33... Qb3+ {[%clk 0:01:25.3]} 34. Kc1
{[%clk 0:00:07]} 34... Qxd5 {[%clk 0:01:26.2]} 35. Qd7 {[%clk 0:00:05.6]} 35...
c5 {[%clk 0:01:23.5]} 36. Qa7 {[%clk 0:00:04.7]} 36... c4 {[%clk 0:01:21]} 37.
Kb2 {[%clk 0:00:04.9]} 37... Qc5 {[%clk 0:01:18.9]} 38. Qe7 {[%clk 0:00:03.6]}
38... a4 {[%clk 0:01:16.4]} 39. Ka2 {[%clk 0:00:03.1]} 39... c3 {[%clk
0:01:12.3]} 40. Qd7 {[%clk 0:00:02.7]} 40... c2 {[%clk 0:01:08.6]} 41. Qd8
{[%clk 0:00:01.8]} 41... Qc4+ {[%clk 0:01:06.7]} 42. Ka3 {[%clk 0:00:01.7]}
42... c1=Q# {[%clk 0:01:06]} 0-1